[Event "Titled Tuesday Blitz May 23 Early 2023"]
[White "Galchenko, Matvey"]
[Black "Fiedorek, Michal"]
[WhiteFideId "24175480"]
[BlackFideId "1199528"]
[WhiteElo "2423"]
[BlackElo "2135"]
[Result "1-0"]
[Round "01"]
[TimeControl "180+2"]
[Date "2023.05.23"]
[WhiteClock "0:00:14"]
[BlackClock "0:00:00"]

1. e4 {[%clk 0:02:53]}  c5 {[%clk 0:02:59]} 2. c3 {[%clk 0:02:53]}  d5 {[%clk 0:02:58]} 3. exd5 {[%clk 0:02:54]}  Qxd5 {[%clk 0:02:57]} 4. d4 {[%clk 0:02:54]}  Nc6 {[%clk 0:02:56]} 5. Nf3 {[%clk 0:02:54]}  e5 {[%clk 0:02:53]} 6. Na3 {[%clk 0:02:12]}  cxd4 {[%clk 0:02:40]} 7. Nb5 {[%clk 0:02:12]}  Qd8 {[%clk 0:02:37]} 8. cxd4 {[%clk 0:02:07]}  a6 {[%clk 0:02:24]} 9. d5 {[%clk 0:01:37]}  axb5 {[%clk 0:01:42]} 10. dxc6 {[%clk 0:01:37]}  Qxd1+ {[%clk 0:01:42]} 11. Kxd1 {[%clk 0:01:38]}  bxc6 {[%clk 0:01:38]} 12. Nxe5 {[%clk 0:01:37]}  Ne7 {[%clk 0:01:25]} 13. Bd3 {[%clk 0:01:33]}  f6 {[%clk 0:01:22]} 14. Nf3 {[%clk 0:01:31]}  Bg4 {[%clk 0:01:22]} 15. Re1 {[%clk 0:01:15]}  O-O-O {[%clk 0:01:18]} 16. Kc2 {[%clk 0:01:14]}  Nd5 {[%clk 0:01:16]} 17. a3 {[%clk 0:01:13]}  Bc5 {[%clk 0:01:13]} 18. Re2 {[%clk 0:00:58]}  Rhe8 {[%clk 0:01:08]} 19. Rxe8 {[%clk 0:00:57]}  Rxe8 {[%clk 0:01:07]} 20. Bd2 {[%clk 0:00:46]}  Bxf2 {[%clk 0:01:03]} 21. Bxh7 {[%clk 0:00:45]}  Ne3+ {[%clk 0:00:37]} 22. Bxe3 {[%clk 0:00:28]}  Rxe3 {[%clk 0:00:37]} 23. Nd4 {[%clk 0:00:23]}  Kc7 {[%clk 0:00:12]} 24. Rf1 {[%clk 0:00:20]}  Bh4 {[%clk 0:00:11]} 25. Bf5 {[%clk 0:00:20]}  Bh5 {[%clk 0:00:06]} 26. Ne6+ {[%clk 0:00:18]}  Kb6 {[%clk 0:00:04]} 27. Nxg7 {[%clk 0:00:19]}  Bf7 {[%clk 0:00:04]} 28. Bg4 {[%clk 0:00:14]}  Bb3+ {[%clk 0:00:02]} 29. Kd2 {[%clk 0:00:14]}  Bg5 {[%clk 0:00:00]} 30. h4 {[%clk 0:00:14]} 1-0


[Site "https://www.chess.com"]

[Event "Titled Tuesday Blitz May 23 Early 2023"]
[White "Pham, Le Thao Nguyen"]
[Black "Beerdsen, Thomas"]
[WhiteFideId "12401226"]
[BlackFideId "1030108"]
[WhiteElo "2286"]
[BlackElo "2549"]
[Result "0-1"]
[Round "01"]
[TimeControl "180+2"]
[Date "2023.05.23"]
[WhiteClock "0:00:08"]
[BlackClock "0:00:50"]

1. d4 {[%clk 0:02:57]}  Nf6 {[%clk 0:02:57]} 2. Nf3 {[%clk 0:02:57]}  a6 {[%clk 0:02:57]} 3. c4 {[%clk 0:02:57]}  b5 {[%clk 0:02:58]} 4. e3 {[%clk 0:02:52]}  bxc4 {[%clk 0:02:57]} 5. Bxc4 {[%clk 0:02:53]}  e6 {[%clk 0:02:58]} 6. O-O {[%clk 0:02:53]}  Bb7 {[%clk 0:02:57]} 7. b3 {[%clk 0:02:45]}  Bd6 {[%clk 0:02:54]} 8. Bb2 {[%clk 0:02:43]}  O-O {[%clk 0:02:53]} 9. Nbd2 {[%clk 0:02:42]}  Ne4 {[%clk 0:02:50]} 10. Nxe4 {[%clk 0:02:39]}  Bxe4 {[%clk 0:02:51]} 11. Bd3 {[%clk 0:02:37]}  f5 {[%clk 0:02:48]} 12. Bxe4 {[%clk 0:02:27]}  fxe4 {[%clk 0:02:49]} 13. Ne5 {[%clk 0:02:27]}  Bxe5 {[%clk 0:02:43]} 14. dxe5 {[%clk 0:02:28]}  Nc6 {[%clk 0:02:44]} 15. Qg4 {[%clk 0:02:21]}  a5 {[%clk 0:02:35]} 16. Qxe4 {[%clk 0:02:07]}  a4 {[%clk 0:02:36]} 17. bxa4 {[%clk 0:01:48]}  Qe7 {[%clk 0:02:36]} 18. Rac1 {[%clk 0:01:43]}  Ra5 {[%clk 0:02:36]} 19. Rc4 {[%clk 0:01:42]}  Rb8 {[%clk 0:02:30]} 20. Bc3 {[%clk 0:01:41]}  Rd5 {[%clk 0:02:30]} 21. f4 {[%clk 0:01:35]}  Qa3 {[%clk 0:02:30]} 22. Qc2 {[%clk 0:01:31]}  Rc5 {[%clk 0:02:19]} 23. Rxc5 {[%clk 0:01:18]}  Qxc5 {[%clk 0:02:20]} 24. Qd3 {[%clk 0:01:16]}  Ne7 {[%clk 0:02:20]} 25. Bd4 {[%clk 0:00:59]}  Qd5 {[%clk 0:02:15]} 26. Qc2 {[%clk 0:00:59]}  Nc6 {[%clk 0:02:11]} 27. Rd1 {[%clk 0:00:56]}  Rb4 {[%clk 0:02:06]} 28. Bc3 {[%clk 0:00:49]}  Qc5 {[%clk 0:02:05]} 29. Rd3 {[%clk 0:00:38]}  Rxf4 {[%clk 0:02:04]} 30. Qd2 {[%clk 0:00:33]}  Rxa4 {[%clk 0:01:34]} 31. Rxd7 {[%clk 0:00:32]}  Re4 {[%clk 0:01:28]} 32. Bd4 {[%clk 0:00:29]}  Nxd4 {[%clk 0:01:24]} 33. exd4 {[%clk 0:00:30]}  Qf8 {[%clk 0:00:58]} 34. h3 {[%clk 0:00:30]}  c5 {[%clk 0:00:51]} 35. d5 {[%clk 0:00:25]}  Rd4 {[%clk 0:00:50]} 36. Qg5 {[%clk 0:00:20]}  h6 {[%clk 0:00:47]} 37. Qg6 {[%clk 0:00:15]}  Rd1+ {[%clk 0:00:48]} 38. Kh2 {[%clk 0:00:15]}  Qf4+ {[%clk 0:00:48]} 39. Qg3 {[%clk 0:00:13]}  Rh1+ {[%clk 0:00:49]} 40. Kxh1 {[%clk 0:00:14]}  Qxg3 {[%clk 0:00:50]} 41. Rd8+ {[%clk 0:00:11]}  Kh7 {[%clk 0:00:50]} 42. d6 {[%clk 0:00:08]}  Qe1+ {[%clk 0:00:50]} 0-1


[Site "https://www.chess.com"]

[Event "Titled Tuesday Blitz May 23 Early 2023"]
[White "Bilan, Danila"]
[Black "Talibov, Shiroghlan"]
[WhiteFideId "24161918"]
[BlackFideId "13429078"]
[WhiteElo "2182"]
[BlackElo "2188"]
[Result "0-1"]
[Round "01"]
[TimeControl "180+2"]
[Date "2023.05.23"]
[WhiteClock "0:00:29"]
[BlackClock "0:01:39"]

1. d4 {[%clk 0:02:54]}  g6 {[%clk 0:02:57]} 2. Nf3 {[%clk 0:02:54]}  Bg7 {[%clk 0:02:56]} 3. Bg5 {[%clk 0:02:55]}  b6 {[%clk 0:02:55]} 4. Nbd2 {[%clk 0:02:53]}  Bb7 {[%clk 0:02:55]} 5. e3 {[%clk 0:02:54]}  d6 {[%clk 0:02:55]} 6. c3 {[%clk 0:02:51]}  Nd7 {[%clk 0:02:55]} 7. Bc4 {[%clk 0:02:50]}  Ngf6 {[%clk 0:02:50]} 8. O-O {[%clk 0:02:48]}  O-O {[%clk 0:02:50]} 9. Qe2 {[%clk 0:02:48]}  Ne4 {[%clk 0:02:45]} 10. Nxe4 {[%clk 0:02:48]}  Bxe4 {[%clk 0:02:45]} 11. Nd2 {[%clk 0:02:45]}  Bb7 {[%clk 0:02:45]} 12. e4 {[%clk 0:02:39]}  Qe8 {[%clk 0:02:40]} 13. Rfe1 {[%clk 0:02:35]}  e5 {[%clk 0:02:37]} 14. Nf3 {[%clk 0:02:24]}  h6 {[%clk 0:02:32]} 15. Bh4 {[%clk 0:02:22]}  a6 {[%clk 0:02:30]} 16. Rad1 {[%clk 0:02:10]}  Kh7 {[%clk 0:02:26]} 17. Bg3 {[%clk 0:01:43]}  Qe7 {[%clk 0:02:22]} 18. Bh4 {[%clk 0:01:42]}  Bf6 {[%clk 0:02:20]} 19. Bxf6 {[%clk 0:01:39]}  Qxf6 {[%clk 0:02:21]} 20. dxe5 {[%clk 0:01:34]}  Nxe5 {[%clk 0:02:21]} 21. Nxe5 {[%clk 0:01:21]}  Qxe5 {[%clk 0:02:22]} 22. Bd5 {[%clk 0:01:21]}  Bxd5 {[%clk 0:02:19]} 23. Rxd5 {[%clk 0:01:22]}  Qe6 {[%clk 0:02:14]} 24. f4 {[%clk 0:01:13]}  Rfe8 {[%clk 0:02:14]} 25. Qf3 {[%clk 0:01:08]}  Qxd5 {[%clk 0:02:11]} 26. exd5 {[%clk 0:01:07]}  Rxe1+ {[%clk 0:02:11]} 27. Kf2 {[%clk 0:01:07]}  Rae8 {[%clk 0:02:05]} 28. Qd3 {[%clk 0:01:06]}  a5 {[%clk 0:02:01]} 29. Qc4 {[%clk 0:01:02]}  R8e7 {[%clk 0:01:58]} 30. g3 {[%clk 0:00:54]}  h5 {[%clk 0:01:57]} 31. Qd3 {[%clk 0:00:47]}  Kg7 {[%clk 0:01:56]} 32. Qd4+ {[%clk 0:00:43]}  f6 {[%clk 0:01:56]} 33. Qd3 {[%clk 0:00:41]}  Kf7 {[%clk 0:01:47]} 34. f5 {[%clk 0:00:37]}  gxf5 {[%clk 0:01:38]} 35. Qxf5 {[%clk 0:00:35]}  R7e2+ {[%clk 0:01:37]} 36. Kf3 {[%clk 0:00:30]}  Rf1+ {[%clk 0:01:38]} 37. Kxe2 {[%clk 0:00:29]}  Rxf5 {[%clk 0:01:39]} 0-1


[Site "https://www.chess.com"]

[Event "Titled Tuesday Blitz May 23 Early 2023"]
[White "Gareyev, Timur"]
[Black "Castellanos Gomez, Alejandro"]
[WhiteFideId "14200937"]
[BlackFideId "22284141"]
[WhiteElo "2563"]
[BlackElo "2158"]
[Result "1-0"]
[Round "01"]
[TimeControl "180+2"]
[Date "2023.05.23"]
[WhiteClock "0:00:13"]
[BlackClock "0:00:02"]

1. d4 {[%clk 0:02:06]}  d5 {[%clk 0:02:58]} 2. c4 {[%clk 0:02:04]}  e6 {[%clk 0:02:58]} 3. Nc3 {[%clk 0:01:58]}  Nf6 {[%clk 0:02:54]} 4. Bg5 {[%clk 0:01:56]}  Be7 {[%clk 0:02:53]} 5. e3 {[%clk 0:01:56]}  O-O {[%clk 0:02:53]} 6. Nf3 {[%clk 0:01:56]}  Nbd7 {[%clk 0:02:53]} 7. Qc2 {[%clk 0:01:53]}  a6 {[%clk 0:02:45]} 8. cxd5 {[%clk 0:01:41]}  exd5 {[%clk 0:02:45]} 9. Bd3 {[%clk 0:01:40]}  c6 {[%clk 0:02:43]} 10. h4 {[%clk 0:01:38]}  Re8 {[%clk 0:02:42]} 11. O-O-O {[%clk 0:01:37]}  b5 {[%clk 0:02:36]} 12. Kb1 {[%clk 0:01:36]}  Ne4 {[%clk 0:02:03]} 13. Nxe4 {[%clk 0:01:32]}  dxe4 {[%clk 0:02:02]} 14. Bxe4 {[%clk 0:01:33]}  h6 {[%clk 0:02:01]} 15. Bxc6 {[%clk 0:01:29]}  Ra7 {[%clk 0:01:56]} 16. Bxe7 {[%clk 0:01:27]}  Qxe7 {[%clk 0:01:56]} 17. d5 {[%clk 0:01:13]}  Rd8 {[%clk 0:01:50]} 18. e4 {[%clk 0:01:10]}  Nb6 {[%clk 0:01:47]} 19. e5 {[%clk 0:01:08]}  Nc4 {[%clk 0:01:42]} 20. d6 {[%clk 0:01:04]}  Qe6 {[%clk 0:01:37]} 21. Bd5 {[%clk 0:01:04]}  Qg4 {[%clk 0:01:37]} 22. Rd4 {[%clk 0:00:55]}  Qh5 {[%clk 0:01:15]} 23. Bxc4 {[%clk 0:00:54]}  bxc4 {[%clk 0:01:14]} 24. Qxc4 {[%clk 0:00:54]}  Bf5+ {[%clk 0:01:12]} 25. Ka1 {[%clk 0:00:54]}  Qg6 {[%clk 0:01:05]} 26. g4 {[%clk 0:00:53]}  Be6 {[%clk 0:01:05]} 27. h5 {[%clk 0:00:50]}  Qh7 {[%clk 0:01:00]} 28. Qe2 {[%clk 0:00:45]}  Rb7 {[%clk 0:00:54]} 29. Rhd1 {[%clk 0:00:42]}  Rdb8 {[%clk 0:00:54]} 30. d7 {[%clk 0:00:41]}  Rd8 {[%clk 0:00:34]} 31. Qxa6 {[%clk 0:00:41]}  Rc7 {[%clk 0:00:34]} 32. Ne1 {[%clk 0:00:28]}  g6 {[%clk 0:00:12]} 33. Qa5 {[%clk 0:00:25]}  Rcxd7 {[%clk 0:00:03]} 34. Rxd7 {[%clk 0:00:19]}  Rxd7 {[%clk 0:00:04]} 35. Rxd7 {[%clk 0:00:19]}  Bxd7 {[%clk 0:00:04]} 36. Qd8+ {[%clk 0:00:19]}  Kg7 {[%clk 0:00:05]} 37. Qxd7 {[%clk 0:00:17]}  gxh5 {[%clk 0:00:05]} 38. Qf5 {[%clk 0:00:16]}  Qg8 {[%clk 0:00:03]} 39. gxh5 {[%clk 0:00:11]}  Qb8 {[%clk 0:00:01]} 40. Nc2 {[%clk 0:00:11]}  Qc7 {[%clk 0:00:01]} 41. b3 {[%clk 0:00:10]}  Qc3+ {[%clk 0:00:01]} 42. Kb1 {[%clk 0:00:11]}  Qd2 {[%clk 0:00:02]} 43. Kb2 {[%clk 0:00:10]}  Qd5 {[%clk 0:00:01]} 44. Qf6+ {[%clk 0:00:11]}  Kg8 {[%clk 0:00:01]} 45. a4 {[%clk 0:00:11]}  Qe4 {[%clk 0:00:01]} 46. Qxh6 {[%clk 0:00:11]}  Qxe5+ {[%clk 0:00:02]} 47. Ka2 {[%clk 0:00:11]}  Qe2 {[%clk 0:00:02]} 48. Qg5+ {[%clk 0:00:12]}  Kf8 {[%clk 0:00:02]} 49. Qd8+ {[%clk 0:00:12]}  Kg7 {[%clk 0:00:02]} 50. Qd4+ {[%clk 0:00:13]}  Kh7 {[%clk 0:00:02]} 51. Qc4 {[%clk 0:00:13]}  Qxf2 {[%clk 0:00:02]} 52. a5 {[%clk 0:00:13]}  Qd2 {[%clk 0:00:02]} 53. Qxf7+ {[%clk 0:00:13]}  Kh6 {[%clk 0:00:02]} 54. Qg6# {[%clk 0:00:13]} 1-0


[Site "https://www.chess.com"]

[Event "Titled Tuesday Blitz May 23 Early 2023"]
[White "Heinemann, Josefine"]
[Black "Siva Mahadevan"]
[WhiteFideId "12900460"]
[BlackFideId "25043153"]
[WhiteElo "2342"]
[BlackElo "2249"]
[Result "0-1"]
[Round "01"]
[TimeControl "180+2"]
[Date "2023.05.23"]
[WhiteClock "0:01:04"]
[BlackClock "0:01:06"]

1. e4 {[%clk 0:02:57]}  c5 {[%clk 0:02:58]} 2. Nf3 {[%clk 0:02:54]}  Nc6 {[%clk 0:02:59]} 3. d4 {[%clk 0:02:44]}  cxd4 {[%clk 0:02:59]} 4. Nxd4 {[%clk 0:02:45]}  Nf6 {[%clk 0:03:00]} 5. Nc3 {[%clk 0:02:43]}  d6 {[%clk 0:03:00]} 6. Bg5 {[%clk 0:02:41]}  e6 {[%clk 0:03:00]} 7. Qd2 {[%clk 0:02:38]}  a6 {[%clk 0:02:59]} 8. O-O-O {[%clk 0:02:37]}  h6 {[%clk 0:03:00]} 9. Nxc6 {[%clk 0:02:34]}  bxc6 {[%clk 0:03:00]} 10. Bf4 {[%clk 0:02:35]}  d5 {[%clk 0:03:00]} 11. Qe1 {[%clk 0:02:29]}  Bb4 {[%clk 0:02:59]} 12. a3 {[%clk 0:02:27]}  Ba5 {[%clk 0:02:59]} 13. f3 {[%clk 0:02:14]}  O-O {[%clk 0:02:57]} 14. g4 {[%clk 0:02:09]}  c5 {[%clk 0:02:48]} 15. g5 {[%clk 0:02:04]}  Nh5 {[%clk 0:02:29]} 16. Bd2 {[%clk 0:02:00]}  d4 {[%clk 0:01:58]} 17. Ne2 {[%clk 0:01:59]}  Bxd2+ {[%clk 0:01:46]} 18. Qxd2 {[%clk 0:02:00]}  Qxg5 {[%clk 0:01:47]} 19. f4 {[%clk 0:01:59]}  Qh4 {[%clk 0:01:42]} 20. Rg1 {[%clk 0:01:44]}  Bb7 {[%clk 0:01:30]} 21. Bg2 {[%clk 0:01:39]}  Rab8 {[%clk 0:01:27]} 22. Bf3 {[%clk 0:01:38]}  Nf6 {[%clk 0:01:20]} 23. Ng3 {[%clk 0:01:33]}  Rfd8 {[%clk 0:01:14]} 24. Rdf1 {[%clk 0:01:25]}  c4 {[%clk 0:01:06]} 25. c3 {[%clk 0:01:12]}  dxc3 {[%clk 0:01:05]} 26. Qxc3 {[%clk 0:01:11]}  Rd3 {[%clk 0:01:06]} 27. Qc2 {[%clk 0:01:08]}  Qxf4+ {[%clk 0:01:06]} 28. Kb1 {[%clk 0:01:04]}  Rxf3 {[%clk 0:01:06]} 0-1


[Site "https://www.chess.com"]

[Event "Titled Tuesday Blitz May 23 Early 2023"]
[White "Fier, Alexandr"]
[Black "Filipascu"]
[WhiteFideId "2107139"]
[WhiteElo "2610"]
[BlackElo "2459"]
[Result "1-0"]
[Round "01"]
[TimeControl "180+2"]
[Date "2023.05.23"]
[WhiteClock "0:01:01"]
[BlackClock "0:00:28"]

1. c4 {[%clk 0:03:00]}  e5 {[%clk 0:02:58]} 2. Nc3 {[%clk 0:03:00]}  Nf6 {[%clk 0:02:57]} 3. Nf3 {[%clk 0:03:01]}  Nc6 {[%clk 0:02:57]} 4. g3 {[%clk 0:03:01]}  Bb4 {[%clk 0:02:56]} 5. Bg2 {[%clk 0:03:01]}  Bxc3 {[%clk 0:02:56]} 6. dxc3 {[%clk 0:03:01]}  O-O {[%clk 0:02:56]} 7. O-O {[%clk 0:03:01]}  d6 {[%clk 0:02:52]} 8. Ne1 {[%clk 0:03:01]}  e4 {[%clk 0:02:37]} 9. Nc2 {[%clk 0:02:58]}  Re8 {[%clk 0:02:37]} 10. Ne3 {[%clk 0:02:58]}  Ne5 {[%clk 0:02:29]} 11. Nd5 {[%clk 0:02:49]}  h6 {[%clk 0:02:14]} 12. Nxf6+ {[%clk 0:02:45]}  Qxf6 {[%clk 0:02:14]} 13. Bxe4 {[%clk 0:02:45]}  Nxc4 {[%clk 0:02:14]} 14. Bg2 {[%clk 0:02:43]}  Bg4 {[%clk 0:02:11]} 15. Re1 {[%clk 0:02:43]}  c6 {[%clk 0:02:09]} 16. b3 {[%clk 0:02:20]}  Ne5 {[%clk 0:01:44]} 17. h3 {[%clk 0:02:08]}  Bh5 {[%clk 0:01:40]} 18. g4 {[%clk 0:02:08]}  Bg6 {[%clk 0:01:28]} 19. Be3 {[%clk 0:01:41]}  d5 {[%clk 0:01:18]} 20. Bd4 {[%clk 0:01:39]}  h5 {[%clk 0:00:58]} 21. f3 {[%clk 0:01:34]}  b6 {[%clk 0:00:49]} 22. Qd2 {[%clk 0:01:31]}  c5 {[%clk 0:00:45]} 23. Bf2 {[%clk 0:01:31]}  Rad8 {[%clk 0:00:43]} 24. Rad1 {[%clk 0:01:30]}  hxg4 {[%clk 0:00:42]} 25. hxg4 {[%clk 0:01:29]}  Nc6 {[%clk 0:00:35]} 26. e3 {[%clk 0:01:19]}  Ne5 {[%clk 0:00:35]} 27. Qe2 {[%clk 0:01:17]}  Nc6 {[%clk 0:00:36]} 28. f4 {[%clk 0:01:13]}  Qxc3 {[%clk 0:00:35]} 29. Rxd5 {[%clk 0:01:11]}  Rxd5 {[%clk 0:00:35]} 30. Bxd5 {[%clk 0:01:12]}  Nd4 {[%clk 0:00:36]} 31. Qf1 {[%clk 0:01:09]}  Nc2 {[%clk 0:00:35]} 32. Rc1 {[%clk 0:01:09]}  Qd2 {[%clk 0:00:33]} 33. Bc6 {[%clk 0:01:03]}  Rxe3 {[%clk 0:00:30]} 34. Bxe3 {[%clk 0:01:00]}  Nxe3 {[%clk 0:00:31]} 35. Qe1 {[%clk 0:01:01]}  Qg2+ {[%clk 0:00:28]} 36. Bxg2 {[%clk 0:01:01]} 1-0


[Site "https://www.chess.com"]

[Event "Titled Tuesday Blitz May 23 Early 2023"]
[White "Jovic, Stanoje"]
[Black "Gharibyan, Mamikon"]
[WhiteFideId "905020"]
[BlackFideId "13308300"]
[WhiteElo "2236"]
[BlackElo "2445"]
[Result "1-0"]
[Round "01"]
[TimeControl "180+2"]
[Date "2023.05.23"]
[WhiteClock "0:01:01"]
[BlackClock "0:00:41"]

1. c4 {[%clk 0:03:00]}  g6 {[%clk 0:02:56]} 2. g3 {[%clk 0:03:01]}  Bg7 {[%clk 0:02:57]} 3. Bg2 {[%clk 0:03:01]}  Nf6 {[%clk 0:02:57]} 4. Nc3 {[%clk 0:03:01]}  O-O {[%clk 0:02:58]} 5. Nf3 {[%clk 0:03:01]}  c6 {[%clk 0:02:58]} 6. O-O {[%clk 0:03:01]}  d5 {[%clk 0:02:59]} 7. cxd5 {[%clk 0:03:01]}  cxd5 {[%clk 0:03:00]} 8. d4 {[%clk 0:03:01]}  Ne4 {[%clk 0:03:00]} 9. Ne5 {[%clk 0:03:01]}  Nxc3 {[%clk 0:03:01]} 10. bxc3 {[%clk 0:03:00]}  Nc6 {[%clk 0:03:02]} 11. f4 {[%clk 0:02:59]}  Qa5 {[%clk 0:02:57]} 12. Qb3 {[%clk 0:02:55]}  Bf5 {[%clk 0:02:50]} 13. Bxd5 {[%clk 0:02:50]}  Nxe5 {[%clk 0:02:42]} 14. fxe5 {[%clk 0:02:49]}  Rac8 {[%clk 0:02:42]} 15. Bd2 {[%clk 0:02:43]}  b5 {[%clk 0:02:40]} 16. e4 {[%clk 0:02:41]}  Bh3 {[%clk 0:02:38]} 17. Bxf7+ {[%clk 0:02:39]}  Kh8 {[%clk 0:02:38]} 18. Rf2 {[%clk 0:02:38]}  b4 {[%clk 0:02:34]} 19. c4 {[%clk 0:02:34]}  Qd8 {[%clk 0:02:18]} 20. d5 {[%clk 0:02:30]}  Bxe5 {[%clk 0:02:16]} 21. Re1 {[%clk 0:02:25]}  Bd4 {[%clk 0:02:11]} 22. Be3 {[%clk 0:02:23]}  Qb6 {[%clk 0:02:11]} 23. e5 {[%clk 0:02:04]}  Bxe3 {[%clk 0:01:54]} 24. Qxe3 {[%clk 0:01:57]}  Qxe3 {[%clk 0:01:51]} 25. Rxe3 {[%clk 0:01:57]}  Rxc4 {[%clk 0:01:52]} 26. Re1 {[%clk 0:01:54]}  Kg7 {[%clk 0:01:47]} 27. e6 {[%clk 0:01:45]}  Rd8 {[%clk 0:01:44]} 28. Rd2 {[%clk 0:01:42]}  a5 {[%clk 0:01:42]} 29. d6 {[%clk 0:01:39]}  a4 {[%clk 0:01:07]} 30. dxe7 {[%clk 0:01:34]}  Rxd2 {[%clk 0:01:08]} 31. e8=Q {[%clk 0:01:32]}  Rg2+ {[%clk 0:01:07]} 32. Kh1 {[%clk 0:01:32]}  Rcc2 {[%clk 0:01:04]} 33. Qg8+ {[%clk 0:01:24]}  Kh6 {[%clk 0:01:03]} 34. Qf8+ {[%clk 0:01:22]}  Kh5 {[%clk 0:00:51]} 35. Bxg6+ {[%clk 0:01:16]}  Kxg6 {[%clk 0:00:43]} 36. Qf7+ {[%clk 0:01:09]}  Kh6 {[%clk 0:00:42]} 37. Qf6+ {[%clk 0:01:07]}  Kh5 {[%clk 0:00:41]} 38. Re5+ {[%clk 0:01:04]}  Kg4 {[%clk 0:00:41]} 39. Qf4# {[%clk 0:01:01]} 1-0


[Site "https://www.chess.com"]

[Event "Titled Tuesday Blitz May 23 Early 2023"]
[White "Rostovtsev, Dmitry"]
[Black "Mrudul Dehankar"]
[WhiteFideId "34278320"]
[BlackFideId "25096990"]
[WhiteElo "2344"]
[BlackElo "2139"]
[Result "1-0"]
[Round "01"]
[TimeControl "180+2"]
[Date "2023.05.23"]
[WhiteClock "0:02:03"]
[BlackClock "0:00:00"]

1. e4 {[%clk 0:02:36]}  c6 {[%clk 0:02:57]} 2. d4 {[%clk 0:02:35]}  d5 {[%clk 0:02:57]} 3. e5 {[%clk 0:02:36]}  Bf5 {[%clk 0:02:56]} 4. Nc3 {[%clk 0:02:36]}  e6 {[%clk 0:02:55]} 5. g4 {[%clk 0:02:36]}  Bg6 {[%clk 0:02:55]} 6. Nge2 {[%clk 0:02:36]}  Ne7 {[%clk 0:02:30]} 7. h4 {[%clk 0:02:36]}  h5 {[%clk 0:02:29]} 8. Nf4 {[%clk 0:02:33]}  Bh7 {[%clk 0:01:15]} 9. Nxh5 {[%clk 0:02:27]}  c5 {[%clk 0:01:13]} 10. Bg5 {[%clk 0:02:26]}  Nbc6 {[%clk 0:01:07]} 11. Nb5 {[%clk 0:02:26]}  Qa5+ {[%clk 0:00:38]} 12. Bd2 {[%clk 0:02:25]}  Qb6 {[%clk 0:00:38]} 13. Nd6+ {[%clk 0:02:25]}  Kd7 {[%clk 0:00:37]} 14. dxc5 {[%clk 0:02:25]}  Qxc5 {[%clk 0:00:33]} 15. Nxf7 {[%clk 0:02:22]}  Nd4 {[%clk 0:00:11]} 16. Rc1 {[%clk 0:02:12]}  Nxc2+ {[%clk 0:00:11]} 17. Rxc2 {[%clk 0:02:12]}  Bxc2 {[%clk 0:00:10]} 18. Qf3 {[%clk 0:02:11]}  Be4 {[%clk 0:00:06]} 19. Qb3 {[%clk 0:02:09]}  b6 {[%clk 0:00:03]} 20. f3 {[%clk 0:02:07]}  Bc2 {[%clk 0:00:03]} 21. Qb5+ {[%clk 0:02:07]}  Qxb5 {[%clk 0:00:03]} 22. Bxb5+ {[%clk 0:02:08]}  Kc7 {[%clk 0:00:03]} 23. Nxh8 {[%clk 0:02:08]}  g6 {[%clk 0:00:02]} 24. Nf4 {[%clk 0:02:07]}  a6 {[%clk 0:00:00]} 25. Nxe6+ {[%clk 0:02:03]} 1-0


[Site "https://www.chess.com"]